[Event "Titled Tuesday Blitz December 13 Early 2022"]
[White "Lopez Idarraga, Daniel Eduardo"]
[Black "Estrada Nieto, Julian"]
[WhiteFideId "4405501"]
[BlackFideId "5101018"]
[WhiteElo "2064"]
[BlackElo "2195"]
[Result "0-1"]
[Round "11"]
[TimeControl "180+1"]
[Date "2022.12.14"]
[WhiteClock "0:00:02"]
[BlackClock "0:00:04"]

1. b3 {[%clk 0:03:00]}  d5 {[%clk 0:02:59]} 2. Bb2 {[%clk 0:03:01]}  Nf6 {[%clk 0:02:59]} 3. Nf3 {[%clk 0:03:01]}  Bg4 {[%clk 0:03:00]} 4. g3 {[%clk 0:03:02]}  Bxf3 {[%clk 0:02:58]} 5. exf3 {[%clk 0:03:03]}  g6 {[%clk 0:02:54]} 6. f4 {[%clk 0:03:03]}  Bg7 {[%clk 0:02:54]} 7. Bg2 {[%clk 0:03:03]}  c6 {[%clk 0:02:54]} 8. O-O {[%clk 0:03:04]}  O-O {[%clk 0:02:54]} 9. d3 {[%clk 0:03:02]}  Nbd7 {[%clk 0:02:52]} 10. Nd2 {[%clk 0:03:03]}  a5 {[%clk 0:02:49]} 11. c4 {[%clk 0:03:01]}  Nc5 {[%clk 0:02:40]} 12. Qc2 {[%clk 0:02:58]}  dxc4 {[%clk 0:02:32]} 13. dxc4 {[%clk 0:02:56]}  Qd3 {[%clk 0:02:32]} 14. Qxd3 {[%clk 0:02:52]}  Nxd3 {[%clk 0:02:32]} 15. Bc3 {[%clk 0:02:52]}  Rfd8 {[%clk 0:02:19]} 16. Rad1 {[%clk 0:02:51]}  a4 {[%clk 0:01:50]} 17. Nf3 {[%clk 0:02:40]}  axb3 {[%clk 0:01:48]} 18. axb3 {[%clk 0:02:41]}  Ne4 {[%clk 0:01:45]} 19. Bxg7 {[%clk 0:02:40]}  Kxg7 {[%clk 0:01:46]} 20. Ne5 {[%clk 0:02:34]}  Ndxf2 {[%clk 0:01:21]} 21. Rxd8 {[%clk 0:02:26]}  Rxd8 {[%clk 0:01:21]} 22. Rxf2 {[%clk 0:02:27]}  Nxf2 {[%clk 0:01:20]} 23. Kxf2 {[%clk 0:02:26]}  Rd2+ {[%clk 0:01:21]} 24. Kf1 {[%clk 0:02:20]}  Rb2 {[%clk 0:01:19]} 25. Nd3 {[%clk 0:01:53]}  Rxb3 {[%clk 0:01:19]} 26. Ke2 {[%clk 0:01:53]}  Ra3 {[%clk 0:01:12]} 27. h4 {[%clk 0:01:24]}  Ra2+ {[%clk 0:01:09]} 28. Kf3 {[%clk 0:01:23]}  b5 {[%clk 0:01:05]} 29. cxb5 {[%clk 0:01:22]}  cxb5 {[%clk 0:01:05]} 30. Bf1 {[%clk 0:01:22]}  Kf6 {[%clk 0:00:56]} 31. Ke4 {[%clk 0:01:17]}  Ra4+ {[%clk 0:00:54]} 32. Kd5 {[%clk 0:01:14]}  Kf5 {[%clk 0:00:49]} 33. Bh3+ {[%clk 0:01:13]}  Kf6 {[%clk 0:00:48]} 34. Nc5 {[%clk 0:01:07]}  e6+ {[%clk 0:00:44]} 35. Kc6 {[%clk 0:01:04]}  Ra3 {[%clk 0:00:42]} 36. Kxb5 {[%clk 0:01:02]}  Ke7 {[%clk 0:00:39]} 37. Ne4 {[%clk 0:00:58]}  f5 {[%clk 0:00:38]} 38. Ng5 {[%clk 0:00:52]}  Rxg3 {[%clk 0:00:38]} 39. Bf1 {[%clk 0:00:53]}  h6 {[%clk 0:00:33]} 40. Nh3 {[%clk 0:00:52]}  Rg4 {[%clk 0:00:32]} 41. Kc5 {[%clk 0:00:51]}  Rxh4 {[%clk 0:00:32]} 42. Kd4 {[%clk 0:00:46]}  Kf6 {[%clk 0:00:32]} 43. Ke3 {[%clk 0:00:46]}  g5 {[%clk 0:00:32]} 44. fxg5+ {[%clk 0:00:40]}  hxg5 {[%clk 0:00:32]} 45. Nf2 {[%clk 0:00:39]}  e5 {[%clk 0:00:28]} 46. Ba6 {[%clk 0:00:38]}  Ra4 {[%clk 0:00:26]} 47. Bc8 {[%clk 0:00:37]}  Ra3+ {[%clk 0:00:24]} 48. Ke2 {[%clk 0:00:37]}  g4 {[%clk 0:00:23]} 49. Nxg4+ {[%clk 0:00:35]}  fxg4 {[%clk 0:00:23]} 50. Bxg4 {[%clk 0:00:35]}  Kg5 {[%clk 0:00:23]} 51. Be6 {[%clk 0:00:33]}  Kf4 {[%clk 0:00:23]} 52. Bd5 {[%clk 0:00:30]}  e4 {[%clk 0:00:23]} 53. Be6 {[%clk 0:00:26]}  e3 {[%clk 0:00:23]} 54. Bd5 {[%clk 0:00:25]}  Rc3 {[%clk 0:00:23]} 55. Ke1 {[%clk 0:00:24]}  Rc2 {[%clk 0:00:22]} 56. Bb7 {[%clk 0:00:23]}  Rd2 {[%clk 0:00:22]} 57. Bc6 {[%clk 0:00:23]}  Rb2 {[%clk 0:00:19]} 58. Bd5 {[%clk 0:00:21]}  Ke5 {[%clk 0:00:18]} 59. Bc6 {[%clk 0:00:18]}  Kd4 {[%clk 0:00:17]} 60. Bd7 {[%clk 0:00:16]}  e2 {[%clk 0:00:14]} 61. Kf2 {[%clk 0:00:14]}  Kc3 {[%clk 0:00:06]} 62. Ke1 {[%clk 0:00:10]}  Kd3 {[%clk 0:00:04]} 63. Bg4 {[%clk 0:00:05]}  Ke3 {[%clk 0:00:04]} 64. Bxe2 {[%clk 0:00:02]}  Rxe2+ {[%clk 0:00:04]} 0-1


[Site "https://www.chess.com"]

[Event "Titled Tuesday Blitz December 13 Early 2022"]
[White "Mazurkiewicz, Michal"]
[Black "Sovetbekova, Nurai"]
[WhiteFideId "1124943"]
[BlackFideId "13801910"]
[WhiteElo "2081"]
[BlackElo "1925"]
[Result "1-0"]
[Round "11"]
[TimeControl "180+1"]
[Date "2022.12.14"]
[WhiteClock "0:00:16"]
[BlackClock "0:00:03"]

1. e4 {[%clk 0:03:00]}  c5 {[%clk 0:02:59]} 2. Nf3 {[%clk 0:03:00]}  d6 {[%clk 0:02:59]} 3. g3 {[%clk 0:03:00]}  g6 {[%clk 0:02:57]} 4. Bg2 {[%clk 0:03:01]}  Bg7 {[%clk 0:02:57]} 5. O-O {[%clk 0:03:01]}  Nc6 {[%clk 0:02:57]} 6. Re1 {[%clk 0:03:01]}  e5 {[%clk 0:02:54]} 7. d3 {[%clk 0:03:01]}  Nf6 {[%clk 0:02:54]} 8. c3 {[%clk 0:03:00]}  O-O {[%clk 0:02:54]} 9. d4 {[%clk 0:03:00]}  exd4 {[%clk 0:02:52]} 10. cxd4 {[%clk 0:03:01]}  Bg4 {[%clk 0:02:35]} 11. dxc5 {[%clk 0:02:48]}  dxc5 {[%clk 0:02:33]} 12. Be3 {[%clk 0:02:24]}  Nxe4 {[%clk 0:02:27]} 13. Qc2 {[%clk 0:02:18]}  Bf5 {[%clk 0:02:10]} 14. g4 {[%clk 0:02:07]}  Bxg4 {[%clk 0:01:59]} 15. Qxe4 {[%clk 0:02:06]}  Bxf3 {[%clk 0:01:57]} 16. Qxf3 {[%clk 0:02:03]}  Bxb2 {[%clk 0:01:57]} 17. Nd2 {[%clk 0:02:03]}  Bxa1 {[%clk 0:01:56]} 18. Rxa1 {[%clk 0:02:04]}  Nd4 {[%clk 0:01:54]} 19. Qxb7 {[%clk 0:02:01]}  Rb8 {[%clk 0:01:48]} 20. Qxa7 {[%clk 0:02:02]}  Nc2 {[%clk 0:01:46]} 21. Rd1 {[%clk 0:01:43]}  Nxe3 {[%clk 0:01:44]} 22. fxe3 {[%clk 0:01:44]}  Qg5 {[%clk 0:01:41]} 23. Nf1 {[%clk 0:01:39]}  Rb2 {[%clk 0:01:38]} 24. Ng3 {[%clk 0:01:23]}  Qxe3+ {[%clk 0:01:37]} 25. Kh1 {[%clk 0:01:24]}  Qf2 {[%clk 0:01:37]} 26. Rg1 {[%clk 0:01:19]}  Rxa2 {[%clk 0:01:36]} 27. Qe7 {[%clk 0:01:09]}  c4 {[%clk 0:01:28]} 28. Ne4 {[%clk 0:01:09]}  Qe2 {[%clk 0:01:23]} 29. Qe5 {[%clk 0:01:02]}  Qb2 {[%clk 0:01:04]} 30. Nf6+ {[%clk 0:00:49]}  Kh8 {[%clk 0:00:52]} 31. Qe7 {[%clk 0:00:33]}  Raa8 {[%clk 0:00:43]} 32. Nd7 {[%clk 0:00:30]}  Rae8 {[%clk 0:00:38]} 33. Qc5 {[%clk 0:00:23]}  Qe2 {[%clk 0:00:29]} 34. Nxf8 {[%clk 0:00:21]}  Kg7 {[%clk 0:00:24]} 35. Nd7 {[%clk 0:00:21]}  Re7 {[%clk 0:00:22]} 36. Qd4+ {[%clk 0:00:20]}  Kh6 {[%clk 0:00:17]} 37. Nf6 {[%clk 0:00:20]}  c3 {[%clk 0:00:08]} 38. Ng4+ {[%clk 0:00:20]}  Kh5 {[%clk 0:00:08]} 39. Nf2 {[%clk 0:00:20]}  c2 {[%clk 0:00:06]} 40. Qf4 {[%clk 0:00:16]}  Re5 {[%clk 0:00:03]} 41. Bf3+ {[%clk 0:00:16]} 1-0


[Site "https://www.chess.com"]

[Event "Titled Tuesday Blitz December 13 Early 2022"]
[White "Mkrtchian, Lilit"]
[Black "Sadubayev, Airat"]
[WhiteFideId "13300601"]
[BlackFideId "13713264"]
[WhiteElo "2316"]
[BlackElo "2160"]
[Result "0-1"]
[Round "11"]
[TimeControl "180+1"]
[Date "2022.12.14"]
[WhiteClock "0:00:06"]
[BlackClock "0:01:15"]

1. Nf3 {[%clk 0:03:00]}  d5 {[%clk 0:02:59]} 2. d4 {[%clk 0:03:00]}  Nf6 {[%clk 0:02:59]} 3. e3 {[%clk 0:03:00]}  c6 {[%clk 0:02:52]} 4. c4 {[%clk 0:02:53]}  e6 {[%clk 0:02:51]} 5. b3 {[%clk 0:02:49]}  Bb4+ {[%clk 0:02:47]} 6. Nbd2 {[%clk 0:02:44]}  Ne4 {[%clk 0:02:45]} 7. Qc2 {[%clk 0:02:44]}  f5 {[%clk 0:02:43]} 8. a3 {[%clk 0:02:42]}  Bd6 {[%clk 0:02:41]} 9. Bb2 {[%clk 0:02:38]}  O-O {[%clk 0:02:35]} 10. Be2 {[%clk 0:02:27]}  Nd7 {[%clk 0:02:33]} 11. Ne5 {[%clk 0:02:17]}  Nxd2 {[%clk 0:02:09]} 12. Qxd2 {[%clk 0:02:15]}  Nxe5 {[%clk 0:02:04]} 13. dxe5 {[%clk 0:02:15]}  Be7 {[%clk 0:02:04]} 14. O-O {[%clk 0:02:05]}  b6 {[%clk 0:01:58]} 15. b4 {[%clk 0:01:43]}  Bb7 {[%clk 0:01:54]} 16. Bf3 {[%clk 0:01:11]}  dxc4 {[%clk 0:01:43]} 17. Qxd8 {[%clk 0:01:10]}  Rfxd8 {[%clk 0:01:42]} 18. b5 {[%clk 0:01:10]}  Rac8 {[%clk 0:01:40]} 19. Rac1 {[%clk 0:01:09]}  Ba8 {[%clk 0:01:34]} 20. bxc6 {[%clk 0:00:38]}  b5 {[%clk 0:01:24]} 21. a4 {[%clk 0:00:17]}  a6 {[%clk 0:01:22]} 22. axb5 {[%clk 0:00:18]}  axb5 {[%clk 0:01:23]} 23. Bd4 {[%clk 0:00:11]}  Bxc6 {[%clk 0:01:21]} 24. Bxc6 {[%clk 0:00:09]}  Rxc6 {[%clk 0:01:21]} 25. Ra1 {[%clk 0:00:09]}  Rb8 {[%clk 0:01:18]} 26. Ra7 {[%clk 0:00:08]}  Bf8 {[%clk 0:01:17]} 27. Rd1 {[%clk 0:00:06]}  c3 {[%clk 0:01:15]} 0-1


[Site "https://www.chess.com"]

[Event "Titled Tuesday Blitz December 13 Early 2022"]
[White "Muminova, Nafisa"]
[Black "De Souza, Cristiano Gomes"]
[WhiteFideId "14201526"]
[BlackFideId "2151758"]
[WhiteElo "2258"]
[BlackElo "2068"]
[Result "1/2-1/2"]
[Round "11"]
[TimeControl "180+1"]
[Date "2022.12.14"]
[WhiteClock "0:00:19"]
[BlackClock "0:00:55"]

1. e4 {[%clk 0:03:00]}  c5 {[%clk 0:02:56]} 2. Nf3 {[%clk 0:03:00]}  d6 {[%clk 0:02:55]} 3. d4 {[%clk 0:03:00]}  cxd4 {[%clk 0:02:54]} 4. Nxd4 {[%clk 0:03:01]}  Nf6 {[%clk 0:02:54]} 5. Nc3 {[%clk 0:03:01]}  a6 {[%clk 0:02:54]} 6. h3 {[%clk 0:03:01]}  e5 {[%clk 0:02:53]} 7. Nde2 {[%clk 0:03:00]}  Nc6 {[%clk 0:02:52]} 8. g4 {[%clk 0:02:58]}  Be6 {[%clk 0:02:52]} 9. g5 {[%clk 0:02:50]}  Nd7 {[%clk 0:02:49]} 10. Bg2 {[%clk 0:02:50]}  b5 {[%clk 0:02:47]} 11. a3 {[%clk 0:02:49]}  Rc8 {[%clk 0:02:46]} 12. O-O {[%clk 0:02:48]}  Be7 {[%clk 0:02:43]} 13. h4 {[%clk 0:02:46]}  O-O {[%clk 0:02:38]} 14. f4 {[%clk 0:02:45]}  exf4 {[%clk 0:02:38]} 15. Nxf4 {[%clk 0:02:44]}  Nce5 {[%clk 0:02:36]} 16. Ncd5 {[%clk 0:02:36]}  Bxd5 {[%clk 0:02:32]} 17. Nxd5 {[%clk 0:02:33]}  Nb6 {[%clk 0:02:33]} 18. c3 {[%clk 0:02:12]}  Nxd5 {[%clk 0:02:30]} 19. Qxd5 {[%clk 0:02:12]}  Rc5 {[%clk 0:02:30]} 20. Qd1 {[%clk 0:02:08]}  Nc4 {[%clk 0:02:30]} 21. Rf2 {[%clk 0:01:56]}  Qd7 {[%clk 0:02:12]} 22. Bf4 {[%clk 0:01:52]}  Ne5 {[%clk 0:02:10]} 23. Qe2 {[%clk 0:01:45]}  Qe6 {[%clk 0:02:09]} 24. Rd1 {[%clk 0:01:42]}  Rfc8 {[%clk 0:01:58]} 25. Qf1 {[%clk 0:01:34]}  R8c7 {[%clk 0:01:52]} 26. Bh3 {[%clk 0:01:32]}  Qc4 {[%clk 0:01:50]} 27. Qg2 {[%clk 0:01:13]}  Nd3 {[%clk 0:01:39]} 28. Rff1 {[%clk 0:01:13]}  Nxf4 {[%clk 0:01:38]} 29. Rxf4 {[%clk 0:01:13]}  Re5 {[%clk 0:01:33]} 30. Rdf1 {[%clk 0:01:05]}  Bf8 {[%clk 0:01:26]} 31. Qf3 {[%clk 0:00:49]}  Rce7 {[%clk 0:01:22]} 32. Bg2 {[%clk 0:00:46]}  Qe6 {[%clk 0:01:13]} 33. Rf5 {[%clk 0:00:42]}  Rxf5 {[%clk 0:01:12]} 34. exf5 {[%clk 0:00:40]}  Qe3+ {[%clk 0:01:09]} 35. Qxe3 {[%clk 0:00:39]}  Rxe3 {[%clk 0:01:10]} 36. Kf2 {[%clk 0:00:38]}  Rd3 {[%clk 0:01:10]} 37. Ke2 {[%clk 0:00:38]}  Rg3 {[%clk 0:01:09]} 38. Bf3 {[%clk 0:00:32]}  Rh3 {[%clk 0:01:07]} 39. Rh1 {[%clk 0:00:31]}  Rxh1 {[%clk 0:01:06]} 40. Bxh1 {[%clk 0:00:32]}  Be7 {[%clk 0:01:05]} 41. Bd5 {[%clk 0:00:28]}  Kf8 {[%clk 0:01:03]} 42. Kf3 {[%clk 0:00:28]}  h6 {[%clk 0:01:02]} 43. Kg4 {[%clk 0:00:28]}  hxg5 {[%clk 0:01:02]} 44. hxg5 {[%clk 0:00:28]}  Bd8 {[%clk 0:01:01]} 45. b4 {[%clk 0:00:27]}  a5 {[%clk 0:01:01]} 46. Bc6 {[%clk 0:00:25]}  axb4 {[%clk 0:01:01]} 47. axb4 {[%clk 0:00:23]}  Bb6 {[%clk 0:00:56]} 48. Bxb5 {[%clk 0:00:22]}  Be3 {[%clk 0:00:57]} 49. Bc4 {[%clk 0:00:20]}  Bd2 {[%clk 0:00:57]} 50. b5 {[%clk 0:00:18]}  Bxc3 {[%clk 0:00:57]} 51. Bd5 {[%clk 0:00:19]}  Bd4 {[%clk 0:00:56]} 52. g6 {[%clk 0:00:19]}  fxg6 {[%clk 0:00:55]} 53. fxg6 {[%clk 0:00:19]}  Ke7 {[%clk 0:00:56]} 54. Kf5 {[%clk 0:00:19]}  Bb6 {[%clk 0:00:55]} 55. Bc6 {[%clk 0:00:19]}  Bc5 {[%clk 0:00:55]} 56. Bd5 {[%clk 0:00:19]}  Bb6 {[%clk 0:00:55]} 57. Bc6 {[%clk 0:00:19]}  Bc5 {[%clk 0:00:55]} 58. Bd5 {[%clk 0:00:19]}  Bb6 {[%clk 0:00:55]} 1/2-1/2


[Site "https://www.chess.com"]

[Event "Titled Tuesday Blitz December 13 Early 2022"]
[White "Navara, David"]
[Black "Avinash, Ramesh"]
[WhiteFideId "309095"]
[BlackFideId "45018340"]
[WhiteElo "2676"]
[BlackElo "2264"]
[Result "1-0"]
[Round "11"]
[TimeControl "180+1"]
[Date "2022.12.13"]
[WhiteClock "0:00:12"]
[BlackClock "0:00:04"]

1. d4 {[%clk 0:03:00]}  Nf6 {[%clk 0:02:59]} 2. c4 {[%clk 0:03:01]}  g6 {[%clk 0:03:00]} 3. Nc3 {[%clk 0:03:01]}  d5 {[%clk 0:03:01]} 4. cxd5 {[%clk 0:03:02]}  Nxd5 {[%clk 0:03:00]} 5. e4 {[%clk 0:03:03]}  Nxc3 {[%clk 0:03:01]} 6. bxc3 {[%clk 0:03:04]}  Bg7 {[%clk 0:03:01]} 7. Be3 {[%clk 0:03:03]}  c5 {[%clk 0:03:00]} 8. Qd2 {[%clk 0:02:58]}  Qa5 {[%clk 0:02:56]} 9. Rc1 {[%clk 0:02:58]}  cxd4 {[%clk 0:02:51]} 10. cxd4 {[%clk 0:02:58]}  Qxd2+ {[%clk 0:02:51]} 11. Bxd2 {[%clk 0:02:59]}  O-O {[%clk 0:02:51]} 12. Nf3 {[%clk 0:02:58]}  e6 {[%clk 0:02:50]} 13. h4 {[%clk 0:02:53]}  b6 {[%clk 0:02:49]} 14. h5 {[%clk 0:02:51]}  Bb7 {[%clk 0:02:49]} 15. h6 {[%clk 0:02:38]}  Bh8 {[%clk 0:02:48]} 16. Bb4 {[%clk 0:01:31]}  Rd8 {[%clk 0:02:46]} 17. Bb5 {[%clk 0:01:21]}  a6 {[%clk 0:01:43]} 18. Be7 {[%clk 0:01:20]}  Rc8 {[%clk 0:01:41]} 19. Rxc8+ {[%clk 0:01:18]}  Bxc8 {[%clk 0:01:42]} 20. Ba4 {[%clk 0:01:03]}  b5 {[%clk 0:01:42]} 21. Bb3 {[%clk 0:01:01]}  Nc6 {[%clk 0:01:41]} 22. Bc5 {[%clk 0:01:01]}  Bb7 {[%clk 0:01:42]} 23. Ke2 {[%clk 0:00:45]}  Na5 {[%clk 0:01:27]} 24. Bc2 {[%clk 0:00:44]}  Nc4 {[%clk 0:01:27]} 25. Rd1 {[%clk 0:00:35]}  Rd8 {[%clk 0:01:21]} 26. e5 {[%clk 0:00:25]}  Nb2 {[%clk 0:01:13]} 27. Rb1 {[%clk 0:00:23]}  Nc4 {[%clk 0:01:13]} 28. a4 {[%clk 0:00:16]}  Bc6 {[%clk 0:01:13]} 29. axb5 {[%clk 0:00:16]}  axb5 {[%clk 0:01:13]} 30. Bd3 {[%clk 0:00:14]}  f6 {[%clk 0:00:31]} 31. Be7 {[%clk 0:00:14]}  Ra8 {[%clk 0:00:22]} 32. exf6 {[%clk 0:00:12]}  Ra2+ {[%clk 0:00:18]} 33. Ke1 {[%clk 0:00:11]}  Rb2 {[%clk 0:00:17]} 34. Ra1 {[%clk 0:00:10]}  Rb3 {[%clk 0:00:05]} 35. Ng5 {[%clk 0:00:10]}  Bxf6 {[%clk 0:00:04]} 36. Bxf6 {[%clk 0:00:10]}  Rxd3 {[%clk 0:00:04]} 37. Ra7 {[%clk 0:00:11]}  Ra3 {[%clk 0:00:04]} 38. Rg7+ {[%clk 0:00:10]}  Kf8 {[%clk 0:00:04]} 39. Nxe6+ {[%clk 0:00:11]}  Ke8 {[%clk 0:00:04]} 40. Re7# {[%clk 0:00:12]} 1-0


[Site "https://www.chess.com"]

[Event "Titled Tuesday Blitz December 13 Early 2022"]
[White "Osmak, Yuliia"]
[Black "Timofeev, Artyom"]
[WhiteFideId "14101602"]
[BlackFideId "4140419"]
[WhiteElo "2328"]
[BlackElo "2586"]
[Result "0-1"]
[Round "11"]
[TimeControl "180+1"]
[Date "2022.12.13"]
[WhiteClock "0:00:01"]
[BlackClock "0:00:15"]

1. e4 {[%clk 0:03:00]}  c5 {[%clk 0:02:59]} 2. Nf3 {[%clk 0:02:59]}  Nc6 {[%clk 0:02:59]} 3. Bb5 {[%clk 0:02:58]}  d6 {[%clk 0:02:59]} 4. O-O {[%clk 0:02:54]}  Bd7 {[%clk 0:02:58]} 5. c3 {[%clk 0:02:53]}  a6 {[%clk 0:02:58]} 6. Ba4 {[%clk 0:02:53]}  Nf6 {[%clk 0:02:55]} 7. Re1 {[%clk 0:02:52]}  b5 {[%clk 0:02:53]} 8. Bc2 {[%clk 0:02:45]}  e5 {[%clk 0:02:52]} 9. d4 {[%clk 0:02:42]}  cxd4 {[%clk 0:02:50]} 10. cxd4 {[%clk 0:02:42]}  Bg4 {[%clk 0:02:49]} 11. dxe5 {[%clk 0:02:28]}  dxe5 {[%clk 0:02:46]} 12. Qxd8+ {[%clk 0:02:20]}  Rxd8 {[%clk 0:02:46]} 13. Bg5 {[%clk 0:02:09]}  Bxf3 {[%clk 0:02:29]} 14. gxf3 {[%clk 0:02:09]}  Nd4 {[%clk 0:02:29]} 15. Bd1 {[%clk 0:02:09]}  Be7 {[%clk 0:02:29]} 16. Nc3 {[%clk 0:02:07]}  Nh5 {[%clk 0:02:18]} 17. Be3 {[%clk 0:02:01]}  Bb4 {[%clk 0:01:37]} 18. a3 {[%clk 0:01:59]}  Bxc3 {[%clk 0:01:29]} 19. bxc3 {[%clk 0:02:00]}  Ne6 {[%clk 0:01:30]} 20. a4 {[%clk 0:01:57]}  O-O {[%clk 0:01:27]} 21. axb5 {[%clk 0:01:56]}  axb5 {[%clk 0:01:27]} 22. Be2 {[%clk 0:01:56]}  Rc8 {[%clk 0:01:24]} 23. Rec1 {[%clk 0:01:52]}  Nc5 {[%clk 0:01:15]} 24. Rab1 {[%clk 0:01:49]}  Na4 {[%clk 0:01:15]} 25. Bxb5 {[%clk 0:00:40]}  Nxc3 {[%clk 0:01:07]} 26. Rb3 {[%clk 0:00:40]}  Nxb5 {[%clk 0:01:02]} 27. Rxb5 {[%clk 0:00:37]}  Rxc1+ {[%clk 0:01:02]} 28. Bxc1 {[%clk 0:00:38]}  f6 {[%clk 0:01:02]} 29. Be3 {[%clk 0:00:36]}  Kf7 {[%clk 0:01:00]} 30. Rb7+ {[%clk 0:00:33]}  Kg6 {[%clk 0:01:00]} 31. Kg2 {[%clk 0:00:34]}  Ra8 {[%clk 0:00:59]} 32. Rc7 {[%clk 0:00:30]}  Ra2 {[%clk 0:00:58]} 33. Rb7 {[%clk 0:00:30]}  Rc2 {[%clk 0:00:58]} 34. Ra7 {[%clk 0:00:29]}  Rc6 {[%clk 0:00:55]} 35. Rb7 {[%clk 0:00:29]}  Rc8 {[%clk 0:00:54]} 36. Ra7 {[%clk 0:00:29]}  Rf8 {[%clk 0:00:53]} 37. Rb7 {[%clk 0:00:29]}  Rf7 {[%clk 0:00:53]} 38. Rxf7 {[%clk 0:00:29]}  Kxf7 {[%clk 0:00:53]} 39. Kh3 {[%clk 0:00:27]}  g6 {[%clk 0:00:52]} 40. Kg4 {[%clk 0:00:27]}  Ng7 {[%clk 0:00:49]} 41. f4 {[%clk 0:00:26]}  h5+ {[%clk 0:00:46]} 42. Kf3 {[%clk 0:00:25]}  exf4 {[%clk 0:00:38]} 43. Bxf4 {[%clk 0:00:24]}  Ne6 {[%clk 0:00:38]} 44. Be3 {[%clk 0:00:24]}  f5 {[%clk 0:00:38]} 45. exf5 {[%clk 0:00:24]}  gxf5 {[%clk 0:00:38]} 46. Kg3 {[%clk 0:00:23]}  Kg6 {[%clk 0:00:38]} 47. Bd2 {[%clk 0:00:19]}  Kf6 {[%clk 0:00:37]} 48. Bc3+ {[%clk 0:00:18]}  Kg6 {[%clk 0:00:38]} 49. Bd2 {[%clk 0:00:18]}  Nd4 {[%clk 0:00:36]} 50. Be3 {[%clk 0:00:18]}  Nc6 {[%clk 0:00:36]} 51. Bf4 {[%clk 0:00:18]}  Nb4 {[%clk 0:00:35]} 52. Be3 {[%clk 0:00:17]}  Nd5 {[%clk 0:00:35]} 53. Bc1 {[%clk 0:00:17]}  Nf6 {[%clk 0:00:35]} 54. Be3 {[%clk 0:00:16]}  Ne4+ {[%clk 0:00:35]} 55. Kf3 {[%clk 0:00:15]}  Nd6 {[%clk 0:00:34]} 56. Kg3 {[%clk 0:00:15]}  Nc4 {[%clk 0:00:34]} 57. Kf3 {[%clk 0:00:15]}  Kf6 {[%clk 0:00:32]} 58. Kg3 {[%clk 0:00:14]}  Kg6 {[%clk 0:00:31]} 59. Bf4 {[%clk 0:00:14]}  Nb2 {[%clk 0:00:30]} 60. Kf3 {[%clk 0:00:11]}  Nd3 {[%clk 0:00:29]} 61. Kg3 {[%clk 0:00:11]}  Nb4 {[%clk 0:00:29]} 62. Kf3 {[%clk 0:00:11]}  Nd5 {[%clk 0:00:29]} 63. Kg3 {[%clk 0:00:11]}  h4+ {[%clk 0:00:27]} 64. Kf3 {[%clk 0:00:11]}  Kh5 {[%clk 0:00:28]} 65. Bd2 {[%clk 0:00:10]}  Nf6 {[%clk 0:00:24]} 66. h3 {[%clk 0:00:09]}  Ne4 {[%clk 0:00:23]} 67. Be3 {[%clk 0:00:09]}  Kg6 {[%clk 0:00:23]} 68. Kf4 {[%clk 0:00:08]}  Ng5 {[%clk 0:00:23]} 69. Bd4 {[%clk 0:00:03]}  Nxh3+ {[%clk 0:00:23]} 70. Kf3 {[%clk 0:00:04]}  Ng5+ {[%clk 0:00:23]} 71. Kg2 {[%clk 0:00:04]}  Kh5 {[%clk 0:00:23]} 72. Be3 {[%clk 0:00:04]}  Kg4 {[%clk 0:00:22]} 73. Kh2 {[%clk 0:00:04]}  Nf3+ {[%clk 0:00:22]} 74. Kg2 {[%clk 0:00:04]}  h3+ {[%clk 0:00:23]} 75. Kh1 {[%clk 0:00:04]}  f4 {[%clk 0:00:22]} 76. Bxf4 {[%clk 0:00:04]}  Nd4 {[%clk 0:00:16]} 77. Be3 {[%clk 0:00:04]}  Nf5 {[%clk 0:00:15]} 78. Kh2 {[%clk 0:00:04]}  Nh4 {[%clk 0:00:15]} 79. Kh1 {[%clk 0:00:04]}  Ng2 {[%clk 0:00:15]} 80. Kh2 {[%clk 0:00:03]}  Ne1 {[%clk 0:00:15]} 81. Kh1 {[%clk 0:00:01]}  Nf3 {[%clk 0:00:15]} 0-1


[Site "https://www.chess.com"]

[Event "Titled Tuesday Blitz December 13 Early 2022"]
[White "Pakleza, Zbigniew"]
[Black "Shuvalov, Evgenij"]
[WhiteFideId "1119290"]
[BlackFideId "4187237"]
[WhiteElo "2410"]
[BlackElo "2049"]
[Result "0-1"]
[Round "11"]
[TimeControl "180+1"]
[Date "2022.12.14"]
[WhiteClock "0:00:01"]
[BlackClock "0:00:18"]

1. Nh3 {[%clk 0:03:00]}  e5 {[%clk 0:02:56]} 2. Na3 {[%clk 0:03:01]}  d5 {[%clk 0:02:55]} 3. Ng1 {[%clk 0:03:01]}  Nf6 {[%clk 0:02:54]} 4. Nb1 {[%clk 0:03:02]}  Nc6 {[%clk 0:02:53]} 5. d3 {[%clk 0:02:59]}  Bc5 {[%clk 0:02:50]} 6. e3 {[%clk 0:03:00]}  O-O {[%clk 0:02:49]} 7. c3 {[%clk 0:02:58]}  a5 {[%clk 0:02:49]} 8. g3 {[%clk 0:02:53]}  Qe7 {[%clk 0:02:47]} 9. Bg2 {[%clk 0:02:53]}  Rd8 {[%clk 0:02:46]} 10. Ne2 {[%clk 0:02:51]}  Bf5 {[%clk 0:02:39]} 11. h3 {[%clk 0:02:44]}  Qe6 {[%clk 0:02:38]} 12. g4 {[%clk 0:02:44]}  Bg6 {[%clk 0:02:38]} 13. d4 {[%clk 0:02:41]}  Bd6 {[%clk 0:02:28]} 14. dxe5 {[%clk 0:02:30]}  Nxe5 {[%clk 0:02:26]} 15. Nf4 {[%clk 0:02:27]}  Qe7 {[%clk 0:02:15]} 16. Nd2 {[%clk 0:01:59]}  Bd3 {[%clk 0:02:03]} 17. Nxd3 {[%clk 0:01:28]}  Nxd3+ {[%clk 0:02:03]} 18. Kf1 {[%clk 0:01:29]}  Ne4 {[%clk 0:01:45]} 19. Nxe4 {[%clk 0:01:00]}  dxe4 {[%clk 0:01:46]} 20. Qa4 {[%clk 0:01:00]}  Qh4 {[%clk 0:01:32]} 21. Qc2 {[%clk 0:00:58]}  f5 {[%clk 0:01:16]} 22. Qe2 {[%clk 0:00:36]}  Rf8 {[%clk 0:01:11]} 23. f4 {[%clk 0:00:33]}  exf3 {[%clk 0:00:23]} 24. Qxd3 {[%clk 0:00:16]}  fxg4 {[%clk 0:00:22]} 25. Qd5+ {[%clk 0:00:01]}  Kh8 {[%clk 0:00:21]} 26. Kg1 {[%clk 0:00:01]}  Qe1+ {[%clk 0:00:18]} 0-1


[Site "https://www.chess.com"]

[Event "Titled Tuesday Blitz December 13 Early 2022"]
[White "Paravyan, David"]
[Black "Tan, Zhongyi"]
[WhiteFideId "4194985"]
[BlackFideId "8603642"]
[WhiteElo "2551"]
[BlackElo "2510"]
[Result "1-0"]
[Round "11"]
[TimeControl "180+1"]
[Date "2022.12.13"]
[WhiteClock "0:01:28"]
[BlackClock "0:00:06"]

1. e4 {[%clk 0:03:00]}  c5 {[%clk 0:02:57]} 2. Nf3 {[%clk 0:03:01]}  Nc6 {[%clk 0:02:57]} 3. Nc3 {[%clk 0:03:00]}  g6 {[%clk 0:02:57]} 4. d4 {[%clk 0:03:00]}  cxd4 {[%clk 0:02:58]} 5. Nxd4 {[%clk 0:03:01]}  Bg7 {[%clk 0:02:58]} 6. Be3 {[%clk 0:03:02]}  Nf6 {[%clk 0:02:58]} 7. Bc4 {[%clk 0:03:02]}  O-O {[%clk 0:02:57]} 8. Bb3 {[%clk 0:03:02]}  d5 {[%clk 0:02:53]} 9. exd5 {[%clk 0:03:02]}  Nb4 {[%clk 0:02:53]} 10. Nde2 {[%clk 0:02:54]}  Qa5 {[%clk 0:02:35]} 11. Qd2 {[%clk 0:02:37]}  Rd8 {[%clk 0:02:30]} 12. O-O-O {[%clk 0:02:36]}  e6 {[%clk 0:02:18]} 13. Nf4 {[%clk 0:02:30]}  Ng4 {[%clk 0:02:01]} 14. Kb1 {[%clk 0:02:16]}  Nxe3 {[%clk 0:01:55]} 15. Qxe3 {[%clk 0:02:17]}  exd5 {[%clk 0:01:48]} 16. Ncxd5 {[%clk 0:02:14]}  Nxd5 {[%clk 0:01:46]} 17. Nxd5 {[%clk 0:02:06]}  Bd7 {[%clk 0:01:38]} 18. Qg5 {[%clk 0:02:05]}  b6 {[%clk 0:01:12]} 19. h4 {[%clk 0:02:00]}  Qc5 {[%clk 0:01:01]} 20. h5 {[%clk 0:01:56]}  a5 {[%clk 0:00:52]} 21. hxg6 {[%clk 0:01:53]}  hxg6 {[%clk 0:00:51]} 22. Nf6+ {[%clk 0:01:27]}  Bxf6 {[%clk 0:00:14]} 23. Qxg6+ {[%clk 0:01:27]}  Bg7 {[%clk 0:00:06]} 24. Qxf7# {[%clk 0:01:28]} 1-0


[Site "https://www.chess.com"]